{"text_format":"3","workbook":"xlsx","n_sheets":2,"sheets":["PRICING SCHEDULE","Sheet1"],"not_rendered":{"images":1,"defined_names":3},"read":"whole","date_system":"1900"}

{"sheet":"PRICING SCHEDULE","index":0,"n_rows":38,"n_cols":8,"rows_kept":38,"merged":[[11,2,11,5],[34,1,37,1],[34,3,34,4],[36,3,36,4],[37,3,37,4]]}
[null,"SUPPLY CHAIN MANAGEMENT"]
[null,"Pricing schedule"]
["RFB No","RFB 2815-2023"]
["RFB Title","Request to Appoint A Service Provider for The Supply, Install of Emergency Exit Doors and Fire Doors at SITA Tshwane Buildings, for a Once-Off Period"]
["Bidder Name "]
[]
["1. INSTRUCTION FOR COMPLETING THE PRICING SCHEDULE"]
["(a)  Bidder must complete/enter YELLOW cells only"]
["(b)  Unit and Line prices must be VAT EXCLUSIVE and in South African Rand (ZAR) currency."]
["(c) The price must include all cost to deliver the goods or render the service, including all applicable taxes, duty fees, logistics/delivery, storage, labour, overtime and subsistance and travel"]
[]
[null,null,"Once of Supply and Installation"]
["Item No","Goods/Service description","Unit of measure","Qty ","Unit Price \n(Excl VAT)","Line Price ","BRAND / MODEL (if applicable)","Price clarification comment"]
[1,"CENTURION ",{"$nulls":3},{"$f":"SUBTOTAL(9,F15:F17)","v":0}]
["1.1","Removal of the currently installed doors","Each",35,0,{"$f":"E15*D15","v":0}]
["1.2","Supply and install new locking mechanism with alarm and push bars to currently installed  emergency exit doors","Each",20,0,{"$f":"D16*E16","v":0}]
["1.3","Supply and install fire doors at SITA Tshwane buildings","Each",35,0,{"$f":"D17*E17","v":0}]
[2,"BETA",{"$nulls":3},{"$f":"SUBTOTAL(9,F19:F20)","v":0}]
["2.1","Removal of the currently installed fire doors","Each",9,0,{"$f":"D19*E19","v":0}]
["2.2","Supply and install fire doors at SITA Tshwane buildings","Each",9,0,{"$f":"D20*E20","v":0}]
[3,"NUMERUS ",{"$nulls":3},{"$f":"SUBTOTAL(9,F22:F23)","v":0}]
["3.1","Removal of the currently installed fire doors","Each",14,0,{"$f":"D22*E22","v":0}]
["3.2","Supply and install fire doors at SITA Tshwane buildings","Each",14,0,{"$f":"D23*E23","v":0}]
[4,"ERASMUSKLOOF ",{"$nulls":3},{"$f":"SUBTOTAL(9,F25:F27)","v":0}]
["4.1","Removal of the currently installed fire doors","Each",11,0,0]
["4.2","Supply and install new locking mechanism with alarm and push bars to currently installed  emergency exit doors","Each",34,0,{"$f":"D26*E26","v":0}]
["4.3","Supply and install fire doors at SITA Tshwane buildings","Each",11,0,{"$f":"D27*E27","v":0}]
[5,"Other",{"$nulls":3},{"$f":"D28*E28","v":0}]
[null,"TOTAL  BID PRICE (EXCL VAT)",{"$nulls":3},{"$f":"F14+F18+F21+F24+F28","v":0}]
[null,"VAT (@15%)",{"$nulls":3},{"$f":"F29*0.15","v":{"v":0,"d":"R0.00"}}]
[null,"TOTAL  BID PRICE (INCL VAT)",{"$nulls":3},{"$f":"F29+F30","v":0}]
[]
[null,"NOTE: ALL PRICES MUST INCLUDE Transportation, Connecting the brackets and Warranty."]
[]
[null,"I, the bidder, confirm that the price(s) and rate(s) quoted cover all the goods and/or works specified in the bidding documents; that the price(s) or rate(s) cover all my obligations and I accept that any mistakes regarding price(s), rate(s) or calculations will be at my own risk.\n[Note: First convert to PDF, then add signature]"]
[null,null,"Name","Capacity"]
[]
[null,null,"Signature (above)","Date"]

{"sheet":"Sheet1","index":1,"n_rows":4,"n_cols":7,"rows_kept":4}
[null,"Beta","Numerus","Erasmuskloof","Centurion"]
["Emergency doors",4,5,18,20,null,{"$f":"SUM(B2:F2)","v":47}]
["Fire doors",9,14,13,35,null,{"$f":"SUM(B3:F3)","v":71}]
["Supply and install new locking mechanism with alarm and push bars to currently installed  emergency fire exit doors",4,5,16]